fUSD/lending_fUSD_20240104
["ID","MTS","AMOUNT","RATE_DAILY","PERIOD"]
[310099677,1704328252534,-500.0,0.0003315,2]
[310099678,1704328252543,-537.06,0.0003315,2]
[310099679,1704328252553,-500.0,0.0003315,2]
[310099680,1704328252563,-500.0,0.0003315,2]
[310099681,1704328252572,-500.0,0.0003315,2]
[310099682,1704328252585,-398.52998252,0.0003315,2]
[310099683,1704328252598,-500.0,0.0003315,2]
[310099684,1704328252609,-500.0,0.0003315,2]
[310099685,1704328252620,-500.0,0.0003315,2]
[310099686,1704328252631,-500.0,0.0003315,2]
[310099687,1704328252642,-995.27,0.0003315,2]
[310099688,1704328252653,-500.0,0.0003315,2]
[310099689,1704328252664,-500.0,0.0003315,2]
[310099690,1704328252675,-500.0,0.0003315,2]
[310099691,1704328252686,-500.0,0.0003315,2]
[310099692,1704328252697,-500.0,0.0003315,2]
[310099693,1704328252707,-610.43841174,0.0003315,2]
[310099694,1704328252717,-500.0,0.0003315,2]
[310099695,1704328252729,-500.0,0.0003315,2]
[310099696,1704328252739,-500.0,0.0003315,2]
[310099697,1704328252750,-500.0,0.0003315,2]
[310099698,1704328252760,-500.0,0.0003315,2]
[310099699,1704328252770,-500.0,0.0003315,2]
[310099700,1704328252780,-500.0,0.0003315,2]
[310099701,1704328252790,-212.97264238,0.0003315,2]
[310099702,1704328252800,-500.0,0.0003315,2]
[310099703,1704328252810,-500.0,0.0003315,2]
[310099704,1704328252820,-630.67305375,0.0003315,2]
[310099705,1704328252832,-500.0,0.0003315,2]
[310099706,1704328252842,-500.0,0.0003315,2]
[310099707,1704328252852,-500.0,0.0003315,2]
[310099708,1704328252865,-500.0,0.0003315,2]
[310099709,1704328252876,-500.0,0.0003315,2]
[310099710,1704328252887,-161.67008082,0.0003315,2]
[310099711,1704328252897,-500.0,0.0003315,2]
[310099712,1704328252907,-500.0,0.0003315,2]
[310099713,1704328252918,-500.0,0.0003315,2]
[310099714,1704328252928,-500.0,0.0003315,2]
[310099715,1704328252937,-500.0,0.0003315,2]
[310099716,1704328252947,-500.0,0.0003315,2]
[310099717,1704328252958,-500.0,0.0003315,2]
[310099718,1704328252969,-500.0,0.0003315,2]
[310099719,1704328252979,-522.78,0.0003315,2]
[310099720,1704328252990,-500.0,0.0003315,2]
[310099721,1704328253000,-500.0,0.0003315,2]
[310099722,1704328253010,-500.0,0.0003315,2]
[310099723,1704328253022,-500.0,0.0003315,2]
[310099724,1704328253033,-500.0,0.0003315,2]
[310099725,1704328253045,-500.0,0.0003315,2]
[310099726,1704328253056,-500.0,0.0003315,2]
[310099727,1704328253066,-500.0,0.0003315,2]
[310099728,1704328253079,-500.0,0.0003315,2]
[310099729,1704328253090,-500.0,0.0003315,2]
[310099730,1704328253102,-500.0,0.0003315,2]
[310099731,1704328253113,-500.0,0.0003315,2]
[310099732,1704328253124,-500.0,0.0003315,2]
[310099733,1704328253135,-500.0,0.0003315,2]
[310099734,1704328253145,-500.0,0.0003315,2]
[310099735,1704328253156,-560.55,0.0003315,2]
[310099736,1704328253166,-500.0,0.0003315,2]
[310099737,1704328253176,-500.0,0.0003315,2]
[310099738,1704328253186,-500.0,0.0003315,2]
[310099739,1704328253196,-553.95,0.0003315,2]
[310099740,1704328253206,-374.27064619,0.0003315,2]
[310099741,1704328253216,-500.0,0.0003315,2]
[310099742,1704328253226,-500.0,0.0003315,2]
[310099743,1704328253236,-541.78478919,0.0003315,2]
[310099744,1704328253245,-333.04,0.0003315,2]
[310099745,1704328253255,-500.0,0.0003315,2]
[310099746,1704328253266,-500.0,0.0003315,2]
[310099747,1704328253276,-587.31924786,0.0003315,2]
[310099748,1704328253286,-541.7,0.0003315,2]
[310099749,1704328253296,-500.0,0.0003315,2]
[310099750,1704328253305,-615.4,0.0003315,2]
[310099751,1704328253314,-500.0,0.0003315,2]
[310099752,1704328253323,-500.0,0.0003315,2]
[310099753,1704328253333,-500.0,0.0003315,2]
[310099754,1704328253342,-357.12,0.0003315,2]
[310099755,1704328253352,-500.0,0.0003315,2]
[310099756,1704328253361,-500.0,0.0003315,2]
[310099757,1704328253370,-486.13,0.0003315,2]
[310099758,1704328253381,-500.0,0.0003315,2]
[310099759,1704328253391,-500.0,0.0003315,2]
[310099760,1704328253401,-500.0,0.0003315,2]
[310099761,1704328253412,-500.0,0.0003315,2]
[310099762,1704328253422,-500.0,0.0003315,2]
[310099763,1704328253432,-500.0,0.0003315,2]
[310099764,1704328253443,-500.0,0.0003315,2]
[310099765,1704328253453,-447.78749335,0.0003315,2]
[310099766,1704328253464,-500.0,0.0003315,2]
[310099767,1704328253473,-500.0,0.0003315,2]
[310099768,1704328253483,-1255.6,0.0003315,2]
[310099769,1704328253492,-571.67,0.0003315,2]
[310099770,1704328253502,-500.0,0.0003315,2]
[310099771,1704328253512,-500.0,0.0003315,2]
[310099772,1704328253524,-500.0,0.0003315,2]
[310099773,1704328253535,-2125.28,0.0003315,2]
[310099774,1704328253545,-500.0,0.0003315,2]
[310099775,1704328253556,-217.04284602,0.0003315,2]
[310099776,1704328253567,-500.0,0.0003315,2]
[310099777,1704328253578,-594.07,0.0003315,2]
[310099778,1704328253590,-500.0,0.0003315,2]
[310099779,1704328253600,-500.0,0.0003315,2]
[310099780,1704328253610,-484.98403461,0.0003315,2]
[310099781,1704328253619,-500.0,0.0003315,2]
[310099782,1704328253629,-500.0,0.0003315,2]
[310099783,1704328253638,-500.0,0.0003315,2]
[310099784,1704328253647,-500.0,0.0003315,2]
[310099785,1704328253657,-256.23617122,0.0003315,2]
[310099786,1704328253666,-536.06497513,0.0003315,2]
[310099787,1704328253675,-250.0,0.0003315,2]
[310099788,1704328253685,-500.0,0.0003315,2]
[310099789,1704328253695,-478.25,0.0003315,2]
[310099790,1704328253704,-500.0,0.0003315,2]
[310099791,1704328253712,-500.0,0.0003315,2]
[310099792,1704328253721,-500.0,0.0003315,2]
[310099793,1704328253730,-635.61,0.0003315,2]
[310099794,1704328253742,-500.0,0.0003315,2]
[310099795,1704328253751,-859.02,0.0003315,2]
[310099796,1704328253760,-500.0,0.0003315,2]
[310099797,1704328253771,-500.0,0.0003315,2]
[310099798,1704328253780,-500.0,0.0003315,2]
[310099799,1704328253789,-500.0,0.0003315,2]
[310099800,1704328253798,-776.32,0.0003315,2]
[310099801,1704328253807,-500.0,0.0003315,2]
[310099802,1704328253816,-500.0,0.0003315,2]
[310099803,1704328253825,-500.0,0.0003315,2]
[310099804,1704328253835,-690.1,0.0003315,2]
[310099805,1704328253844,-500.0,0.0003315,2]
[310099806,1704328253854,-564.83,0.0003315,2]
[310099807,1704328253863,-500.0,0.0003315,2]
[310099808,1704328253873,-500.0,0.0003315,2]
[310099809,1704328253882,-500.0,0.0003315,2]
[310099810,1704328253891,-500.0,0.0003315,2]
[310099811,1704328253901,-500.0,0.0003315,2]
[310099812,1704328253910,-500.0,0.0003315,2]
[310099813,1704328253920,-500.0,0.0003315,2]
[310099814,1704328253930,-500.0,0.0003315,2]
[310099815,1704328253939,-500.0,0.0003315,2]
[310099816,1704328253949,-500.0,0.0003315,2]
[310099817,1704328253960,-895.53,0.0003315,2]
[310099818,1704328253969,-500.0,0.0003315,2]
[310099819,1704328253978,-607.38,0.0003315,2]
[310099820,1704328253988,-500.0,0.0003315,2]
[310099821,1704328253997,-500.0,0.0003315,2]
[310099822,1704328254007,-500.0,0.0003315,2]
[310099823,1704328254018,-500.0,0.0003315,2]
[310099824,1704328254028,-500.0,0.0003315,2]
[310099825,1704328254037,-500.0,0.0003315,2]
[310099826,1704328254046,-500.0,0.0003315,2]
[310099827,1704328254054,-500.0,0.0003315,2]
[310099828,1704328254063,-500.0,0.0003315,2]
[310099829,1704328254073,-7777.28,0.0003315,2]
[310099830,1704328254082,-500.0,0.0003315,2]
[310099831,1704328254091,-339.0,0.0003315,2]
[310099832,1704328254101,-579.26,0.0003315,2]
[310099833,1704328254110,-500.0,0.0003315,2]
[310099834,1704328254119,-571.54,0.0003315,2]
[310099835,1704328254129,-500.0,0.0003315,2]
[310099836,1704328254140,-500.0,0.0003315,2]
[310099837,1704328254152,-532.69,0.0003315,2]
[310099838,1704328254162,-3805.78,0.0003315,2]
[310099839,1704328254171,-500.0,0.0003315,2]
[310099840,1704328254181,-500.0,0.0003315,2]
[310099841,1704328254193,-500.0,0.0003315,2]
[310099842,1704328254202,-500.0,0.0003315,2]
[310099843,1704328254212,-500.0,0.0003315,2]
[310099844,1704328254221,-500.0,0.0003315,2]
[310099845,1704328254231,-500.0,0.0003315,2]
[310099846,1704328254241,-763.44,0.0003315,2]
[310099847,1704328254250,-1485.8,0.0003315,2]
[310099848,1704328254259,-500.0,0.0003315,2]
[310099849,1704328254271,-500.0,0.0003315,2]
[310099850,1704328254280,-500.0,0.0003315,2]
[310099851,1704328254290,-44.46755669,0.0003315,2]
[310099852,1704328254306,-455.53244331,0.0003315,2]
[310099853,1704328254315,-500.0,0.0003315,2]
[310099854,1704328254325,-500.0,0.0003315,2]
[310099855,1704328254334,-687.66,0.0003315,2]
[310099856,1704328254344,-500.0,0.0003315,2]
[310099857,1704328254353,-1567.34,0.0003315,2]
[310099858,1704328254362,-1068.51,0.0003315,2]
[310099859,1704328254372,-500.0,0.0003315,2]
[310099860,1704328254381,-5543.74,0.0003315,2]
[310099861,1704328254392,-500.0,0.0003315,2]
[310099862,1704328254402,-185.3,0.0003315,2]
[310099863,1704328254411,-500.0,0.0003315,2]
[310099864,1704328254421,-500.0,0.0003315,2]
[310099865,1704328254430,-500.0,0.0003315,2]
[310099866,1704328254440,-500.0,0.0003315,2]
[310099867,1704328254449,-500.0,0.0003315,2]
[310099868,1704328254459,-500.0,0.0003315,2]
[310099869,1704328254468,-267.06282064,0.0003315,2]
[310099870,1704328254477,-500.0,0.0003315,2]
[310099871,1704328254487,-6130.17,0.0003315,2]
[310099872,1704328254497,-500.0,0.0003315,2]
[310099873,1704328254506,-938.37,0.0003315,2]
[310099874,1704328254516,-49.36022245,0.0003315,2]
[310099875,1704328339730,1688.0,0.000225,2]
[310099876,1704328428227,169219.76560586,0.000225,2]
[310099877,1704328620178,1670.0,0.000225,2]
[310099880,1704329301172,13265.87676227,0.000225,2]
[310099916,1704329432201,-232.44610427,0.00022593,2]
[310099917,1704329432210,-471.80282371,0.00022593,2]
[310099918,1704329432219,-526.58804281,0.00022594,2]
[310099919,1704329432229,-1127.06302923,0.00022594,2]
[310099920,1704329432242,-782.1525774,0.00022594,2]
[310099921,1704329432251,-4802.2574226,0.00022595,2]
[310099922,1704329432262,-345.85363924,0.00022595,2]
[310099923,1704329432274,-28139.55973296,0.00022595,2]
[310099924,1704329432284,-523.53043704,0.00022595,2]
[310099925,1704329432294,-155.0,0.00022595,2]
[310099926,1704329432303,-202.35187319,0.00022596,2]
[310099927,1704329432312,-155.0,0.00022596,2]
[310099928,1704329432321,-840.51157263,0.00022596,2]
[310099929,1704329432331,-155.0,0.00022596,2]
[310099930,1704329432340,-7485.68006583,0.00022596,2]
[310099931,1704329432349,-343.04565361,0.00022596,2]
[310099932,1704329432358,-155.0,0.00022596,2]
[310099933,1704329432368,-865.30395912,0.00022597,2]
[310099934,1704329432377,-161.67633359,0.00022597,2]
[310099935,1704329432386,-155.0,0.00022597,2]
[310099936,1704329432395,-155.0,0.00022598,2]
[310099937,1704329432404,-360.54533661,0.00022598,2]
[310099938,1704329432414,-10492.4099566,0.00022598,2]
[310099939,1704329432423,-1199.48053034,0.00022599,2]
[310099940,1704329432436,-82.31973973,0.00022599,2]
[310099941,1704329432445,-1239.70584276,0.00022599,2]
[310099942,1704329432457,-935.31158802,0.00022599,2]
[310099943,1704329432477,-3141.88098496,0.00022599,2]
[310099944,1704329432487,-359.77442061,0.00022606,2]
[310099945,1704329432496,-3180.66829188,0.00027127,2]
[310099946,1704329432507,-538.81865907,0.00028258,2]
[310099947,1704329432516,-150.0,0.00028259,2]
[310099948,1704329432525,-75.57002883,0.0002826,2]
[310099949,1704329432537,-577.12405075,0.0002826,2]
[310099950,1704329432550,-2735.92343756,0.0002826,2]
[310099951,1704329432562,-6137.02346261,0.0002826,2]
[310099952,1704329432571,-299.85361044,0.00028268,2]
[310099953,1704329432581,-276.76,0.00028268,2]
[310099954,1704329432590,-4416.57694078,0.0002828,2]
[310099955,1704329432602,-853.71847551,0.0002828,2]
[310099956,1704329432613,-852.59213198,0.0002828,2]
[310099957,1704329432642,-423.02581169,0.0002828,2]
[310099958,1704329432654,-3454.07664004,0.0002828,2]
[310099959,1704329432664,-399.74,0.00028292,2]
[310099961,1704329432673,-2378.82,0.00029883,2]
[310099962,1704329432682,-150.0,0.00029983,2]
[310099964,1704329432692,-186.05,0.00029996,2]
[310099967,1704329432701,-683.49,0.00029999,2]
[310099968,1704329432711,-250.0,0.00030151,2]
[310099971,1704329432721,-464.41,0.00030208,2]
[310099972,1704329432730,-272.45,0.0003021,2]
[310099975,1704329432740,-3437.14,0.00030325,2]
[310099976,1704329432749,-2000.0,0.0003036,2]
[310099978,1704329432759,-162.4,0.00030381,2]
[310099980,1704329432768,-1182.92,0.00030436,2]
[310099982,1704329432778,-200.0,0.00030554,2]
[310099984,1704329432788,-20.90469819,0.00030555,2]
[310099986,1704329432800,-321.88181297,0.00030555,2]
[310099989,1704329432830,-56.95348884,0.00030555,2]
[310099991,1704329432840,-160.08,0.00030659,2]
[310099993,1704329432849,-640.0,0.00030671,2]
[310099995,1704329432859,-142.84077116,0.00030819,2]
[310099997,1704329432871,-17.23922884,0.00030819,2]
[310099999,1704329432880,-167.85,0.00030862,2]
[310100001,1704329432890,-385.33323618,0.0003088,4]
[310100003,1704329432899,-116.43581809,0.00030886,2]
[310100006,1704329432911,-112.69418191,0.00030886,2]
[310100008,1704329432920,-207.0,0.00030889,2]
[310100010,1704329432929,-136.25104256,0.00030978,2]
[310100012,1704329432947,-23.82895744,0.00030978,2]
[310100014,1704329432957,-150.0,0.00031,2]
[310100015,1704329432967,-25606.3088231,0.000311,4]
[310100016,1704329432977,-160.08,0.00031138,2]
[310100017,1704329432986,-360.0,0.00031178,2]
[310100018,1704329432996,-464.41,0.00031186,2]
[310100019,1704329433006,-3576.68550241,0.00031196,4]
[310100020,1704329433015,-429.65044682,0.00031197,2]
[310100021,1704329433025,-730.51242582,0.00031198,4]
[310100022,1704329433035,-342.58589686,0.00031198,4]
[310100023,1704329433045,-856.59452082,0.00031198,4]
[310100024,1704329433055,-828.71182416,0.00031199,4]
[310100025,1704329433065,-392.06543864,0.00031199,4]
[310100026,1704329433074,-165.77,0.00031275,2]
[310100027,1704329433083,-160.08,0.00031298,2]
[310100028,1704329433092,-167.85,0.00031303,2]
[310100029,1704329433102,-160.08,0.00031458,2]
[310100030,1704329433112,-189.11,0.00031594,120]
[310100031,1704329433122,-160.08,0.00031617,2]
[310100032,1704329433132,-167.85,0.00031743,2]
[310100033,1704329433142,-160.08,0.00031777,2]
[310100034,1704329433152,-158.04,0.00031807,2]
[310100035,1704329433161,-160.08,0.00031937,2]
[310100036,1704329433171,-157.0,0.00032,2]
[310100037,1704329433180,-150.0,0.00032014,2]
[310100038,1704329433191,-160.08,0.00032097,2]
[310100039,1704329433201,-464.41,0.00032165,2]
[310100040,1704329433212,-167.85,0.00032184,2]
[310100041,1704329433221,-30478.0307,0.00032222,2]
[310100042,1704329433231,-160.08,0.00032256,2]
[310100043,1704329433241,-151.40104,0.00032298,2]
[310100044,1704329433251,-293.671,0.00032322,2]
[310100045,1704329433261,-8677.869,0.00032322,2]
[310100046,1704329433270,-2847.773,0.00032322,2]
[310100047,1704329433279,-225.621,0.00032322,2]
[310100048,1704329433288,-196.0,0.00032322,2]
[310100049,1704329433298,-156.0,0.00032322,2]
[310100050,1704329433307,-2894.0,0.00032322,2]
[310100051,1704329433318,-2265.0,0.00032322,2]
[310100052,1704329433328,-250.0,0.00032322,2]
[310100053,1704329433338,-2647.594,0.00032322,2]
[310100054,1704329433347,-5592.966,0.00032322,2]
[310100055,1704329433357,-214.7,0.00032322,2]
[310100056,1704329433366,-235.619,0.00032322,2]
[310100057,1704329433376,-9480.285,0.00032322,2]
[310100058,1704329433385,-170.0,0.00032322,2]
[310100059,1704329433395,-162.203,0.00032322,2]
[310100060,1704329433405,-150.384,0.00032322,2]
[310100061,1704329433415,-1026.0,0.00032322,2]
[310100062,1704329433425,-158.04,0.00032337,2]
[310100063,1704329433435,-155.0,0.00032373,4]
[310100064,1704329433445,-151.40104,0.00032398,2]
[310100065,1704329433454,-407.06,0.00032411,2]
[310100066,1704329433464,-313.44,0.00032411,2]
[310100067,1704329433474,-407.06,0.00032411,2]
[310100068,1704329433485,-313.44,0.00032411,2]
[310100069,1704329433495,-407.06,0.00032411,2]
[310100070,1704329433505,-313.44,0.00032411,2]
[310100071,1704329433514,-407.06,0.00032411,2]
[310100072,1704329433524,-738.25,0.00032411,2]
[310100073,1704329433534,-416.87,0.00032411,2]
[310100074,1704329433543,-407.06,0.00032411,2]
[310100075,1704329433552,-407.06,0.00032411,2]
[310100076,1704329433562,-416.87,0.00032411,2]
[310100077,1704329433572,-151.40104,0.00032498,2]
[310100078,1704329433581,-151.40104,0.00032598,2]
[310100079,1704329433591,-167.85,0.00032625,2]
[310100080,1704329433601,-230.53959902,0.00032674,4]
[310100081,1704329433610,-3846.00581784,0.00032674,4]
[310100082,1704329433621,-155.0,0.00032674,4]
[310100083,1704329433631,-530.49786083,0.00032674,4]
[310100084,1704329433644,-284.37652199,0.00032674,4]
[310100085,1704329433654,-264.54201298,0.00032674,4]
[310100086,1704329433663,-151.40104,0.00032698,2]
[310100087,1704329433673,-500.0,0.000327,2]
[310100088,1704329433683,-255.78,0.000327,7]
[310100089,1704329433692,-1278.0717,0.00032719,2]
[310100090,1704329433702,-3441.64138705,0.00032745,7]
[310100091,1704329433711,-4289.14894143,0.00032745,7]
[310100092,1704329433721,-203.58912476,0.00032774,2]
[310100093,1704329433731,-377.14093631,0.00032774,2]
[310100094,1704329433740,-179.09290447,0.00032774,6]
[310100095,1704329433750,-738.17,0.00032776,2]
[310100096,1704329433760,-7500.0,0.00032776,2]
[310100097,1704329433770,-151.34891053,0.00032776,2]
[310100098,1704329433779,-151.40104,0.00032798,2]
[310100099,1704329433788,-49894.32,0.000328,2]
[310100100,1704329433798,-399.74,0.00032819,2]
[310100101,1704329433807,-263.71598306,0.00032837,7]
[310100102,1704329433816,-190.32953842,0.00032864,4]
[310100103,1704329433825,-756.20900926,0.00032864,4]
[310100104,1704329433834,-155.0,0.00032864,4]
[310100105,1704329433843,-355.02113899,0.00032864,4]
[310100106,1704329433853,-161.08464285,0.00032864,4]
[310100107,1704329433863,-5347.33927379,0.00032864,2]
[310100108,1704329433874,-233.56810335,0.00032864,4]
[310100109,1704329433883,-194.14566676,0.00032864,4]
[310100110,1704329433892,-213.48669747,0.00032864,2]
[310100111,1704329433901,-159.76703467,0.00032865,4]
[310100112,1704329433912,-158.04,0.00032867,2]
[310100113,1704329433923,-165.99149284,0.0003287,4]
[310100114,1704329433933,-399.1011347,0.0003287,4]
[310100115,1704329433942,-155.0,0.0003287,4]
[310100116,1704329433951,-309.43022401,0.0003287,4]
[310100117,1704329433960,-221.51784055,0.00032871,4]
[310100118,1704329433969,-3920.35158571,0.00032871,2]
[310100119,1704329433978,-1933.23761013,0.00032871,2]
[310100120,1704329433986,-4875.79543829,0.00032872,4]
[310100121,1704329433995,-182.77537892,0.00032872,4]
[310100122,1704329434004,-429.9439476,0.00032872,4]
[310100123,1704329434013,-30020.3469268,0.00032872,4]
[310100124,1704329434022,-624.66515753,0.00032872,4]
[310100125,1704329434031,-360.74739267,0.00032873,4]
[310100126,1704329434041,-2888.71602637,0.00032873,4]
[310100127,1704329434050,-2380.15552073,0.00032873,4]
[310100128,1704329434059,-465044.55065085,0.00032874,4]
[310100129,1704329434068,-728.99772454,0.00032874,4]
[310100130,1704329434077,-500.0,0.00032876,2]
[310100131,1704329434086,-500.0,0.00032876,2]
[310100132,1704329434095,-524.38221674,0.00032876,2]
[310100133,1704329434104,-348.53514864,0.00032876,2]
[310100134,1704329434112,-500.0,0.00032876,2]
[310100135,1704329434122,-500.0,0.00032876,2]
[310100136,1704329434131,-500.0,0.00032876,2]
[310100137,1704329434140,-500.0,0.00032876,2]
[310100138,1704329434150,-500.0,0.00032876,2]
[310100139,1704329434158,-500.0,0.00032876,2]
[310100140,1704329434168,-229.51747972,0.00032876,2]
[310100141,1704329434177,-500.0,0.00032876,2]
[310100142,1704329434185,-500.0,0.00032876,2]
[310100143,1704329434194,-500.0,0.00032876,2]
[310100144,1704329434203,-524.32594089,0.00032876,2]
[310100145,1704329434212,-500.0,0.00032876,2]
[310100146,1704329434221,-500.0,0.00032876,2]
[310100147,1704329434230,-500.0,0.00032876,2]
[310100148,1704329434239,-500.0,0.00032876,2]
[310100149,1704329434249,-500.0,0.00032876,2]
[310100150,1704329434258,-500.0,0.00032876,2]
[310100151,1704329434267,-276.75114989,0.00032876,2]
[310100152,1704329434276,-500.0,0.00032876,2]
[310100153,1704329434285,-500.0,0.00032876,2]
[310100154,1704329434294,-500.0,0.00032876,2]
[310100155,1704329434302,-500.0,0.00032876,2]
[310100156,1704329434311,-500.0,0.00032876,2]
[310100157,1704329434320,-500.0,0.00032876,2]
[310100158,1704329434329,-500.0,0.00032876,2]
[310100159,1704329434339,-500.0,0.00032876,2]
[310100160,1704329434348,-500.0,0.00032876,2]
[310100161,1704329434358,-500.0,0.00032876,2]
[310100162,1704329434367,-500.0,0.00032876,2]
[310100163,1704329434376,-480.7159821,0.00032876,2]
[310100164,1704329434385,-500.0,0.00032876,2]
[310100165,1704329434394,-500.0,0.00032876,2]
[310100166,1704329434403,-500.0,0.00032876,2]
[310100167,1704329434413,-500.0,0.00032876,2]
[310100168,1704329434422,-500.0,0.00032876,2]
[310100169,1704329434432,-500.0,0.00032876,2]
[310100170,1704329434441,-500.0,0.00032876,2]
[310100171,1704329434450,-445.91108349,0.00032876,2]
[310100172,1704329434459,-787.44,0.00032876,2]
[310100173,1704329434469,-500.0,0.00032876,2]
[310100174,1704329434478,-403.46041336,0.00032876,2]
[310100175,1704329434487,-554.86,0.00032876,2]
[310100176,1704329434497,-711.63,0.00032876,2]
[310100177,1704329434506,-500.0,0.00032876,2]
[310100178,1704329434515,-500.0,0.00032876,2]
[310100179,1704329434524,-500.0,0.00032876,2]
[310100180,1704329434533,-500.0,0.00032876,2]
[310100181,1704329434543,-500.0,0.00032876,2]
[310100182,1704329434553,-500.0,0.00032876,2]
[310100183,1704329434563,-500.0,0.00032876,2]
[310100184,1704329434573,-500.0,0.00032876,2]
[310100185,1704329434582,-500.0,0.00032876,2]
[310100186,1704329434591,-500.0,0.00032876,2]
[310100187,1704329434601,-212.6583,0.00032876,2]
[310100188,1704329434610,-500.0,0.00032876,2]
[310100189,1704329434619,-500.0,0.00032876,2]
[310100190,1704329434628,-500.0,0.00032876,2]
[310100191,1704329434638,-500.0,0.00032876,2]
[310100192,1704329434647,-500.0,0.00032876,2]
[310100193,1704329434657,-500.0,0.00032876,2]
[310100194,1704329434666,-912.33,0.00032876,2]
[310100195,1704329434675,-500.0,0.00032876,2]
[310100196,1704329434684,-500.0,0.00032876,2]
[310100197,1704329434693,-500.0,0.00032876,2]
[310100198,1704329434703,-500.0,0.00032876,2]
[310100199,1704329434712,-500.0,0.00032876,2]
[310100200,1704329434721,-500.0,0.00032876,2]
[310100201,1704329434731,-239.40167639,0.00032876,2]
[310100202,1704329434740,-500.0,0.00032876,2]
[310100203,1704329434750,-500.0,0.00032876,2]
[310100204,1704329434760,-500.0,0.00032876,2]
[310100205,1704329434769,-500.0,0.00032876,2]
[310100206,1704329434779,-500.0,0.00032876,2]
[310100207,1704329434789,-500.0,0.00032876,2]
[310100208,1704329434798,-500.0,0.00032876,2]
[310100209,1704329434807,-500.0,0.00032876,2]
[310100210,1704329434817,-500.0,0.00032876,2]
[310100211,1704329434826,-500.0,0.00032876,2]
[310100212,1704329434835,-500.0,0.00032876,2]
[310100213,1704329434844,-500.0,0.00032876,2]
[310100214,1704329434853,-500.0,0.00032876,2]
[310100215,1704329434862,-500.0,0.00032876,2]
[310100216,1704329434871,-500.0,0.00032876,2]
[310100217,1704329434880,-500.0,0.00032876,2]
[310100218,1704329434889,-500.0,0.00032876,2]
[310100219,1704329434898,-500.0,0.00032876,2]
[310100220,1704329434907,-500.0,0.00032876,2]
[310100221,1704329434916,-820.91,0.00032876,2]
[310100222,1704329434925,-500.0,0.00032876,2]
[310100223,1704329434934,-500.0,0.00032876,2]
[310100224,1704329434943,-500.0,0.00032876,2]
[310100225,1704329434952,-500.0,0.00032876,2]
[310100226,1704329434961,-500.0,0.00032876,2]
[310100227,1704329434970,-500.0,0.00032876,2]
[310100228,1704329434980,-500.0,0.00032876,2]
[310100229,1704329434989,-500.0,0.00032876,2]
[310100230,1704329434998,-500.0,0.00032876,2]
[310100231,1704329435007,-500.0,0.00032876,2]
[310100232,1704329435017,-500.0,0.00032876,2]
[310100233,1704329435026,-500.0,0.00032876,2]
[310100234,1704329435035,-500.0,0.00032876,2]
[310100235,1704329435044,-500.0,0.00032876,2]
[310100236,1704329435053,-500.0,0.00032876,2]
[310100237,1704329435062,-500.0,0.00032876,2]
[310100238,1704329435072,-500.0,0.00032876,2]
[310100239,1704329435282,-500.0,0.00032876,2]
[310100240,1704329435292,-500.0,0.00032876,2]
[310100241,1704329435301,-500.0,0.00032876,2]